Cogmind - Beta 15 @@@ ROGUE MODE // 2025.05.31 @ 22:57:33 Player: Sunvar Result: Escaped! Performance ------------- Evolutions (9) 4500 Regions Visited (14) 2800 Robots Destroyed (101) 505 Value Destroyed (2358) 2358 Prototype IDs (35) 700 Alien Tech Used (0) 0 Bonus (3300) 3300 TOTAL SCORE: 14163 Bonus ------- Aligned with FarCom 300 Win 3000 Cogmind --------- Core Integrity 1576/1600 Matter 285/300 Energy 194/200 System Corruption 0% Temperature Cool (12) Movement Flying (28) Location To Epsilon Eridani Parts ------- > --- POWER (3) -------- Light Angular Momentum Engine Micro Fission Core > --- PROPULSION (8) --- Cooled Linear Gravjet Cooled VTOL Module Cooled VTOL Module Nuclear Pulse Array Field Propulsion Array > --- UTILITY (12) ----- Enhanced Optical Array Improved Signal Interpreter Advanced Transmission Jammer Cloak of Protection Layered Light Armor Plating Hacking Suite Hacking Suite Hacking Suite Improved Hacking Suite Improved System Shield Advanced System Shield > --- WEAPON (2) ------- Phase Cannon Heavy Pick > --- INVENTORY (5) ---- Impulse Thruster Array Gamma Bomb Array Force Lance Peak State ------------ > --- POWER ------------ Light Angular Momentum Engine Micro Fission Core > --- PROPULSION ------- Cooled Linear Gravjet Improved VTOL Module Cooled VTOL Module Cooled VTOL Module Nuclear Pulse Array Field Propulsion Array > --- UTILITY ---------- Enhanced Optical Array Improved Signal Interpreter Advanced Transmission Jammer Cloak of Protection Layered Light Armor Plating Hacking Suite Hacking Suite Hacking Suite Improved Hacking Suite Improved System Shield Advanced System Shield > --- WEAPON ----------- Phase Cannon Heavy Pick > --- INVENTORY -------- Impulse Thruster Array Gamma Bomb Array Force Lance [Rating: 126] Favorites ----------- Power Cooled Ion Engine Engine Cooled Ion Engine Power Core Micro Nuclear Core Propulsion Improved Treads Treads Improved Treads Leg Aluminum Leg Hover Unit Cooled Linear Gravjet Flight Unit Cooled VTOL Module Utility Hacking Suite Device Cooling System Storage Large Storage Unit Processor Advanced Visual Processing Unit Hackware Hacking Suite Protection Layered Light Armor Plating Weapon Spread Laser Energy Gun Spread Laser Energy Cannon Advanced Beam Cannon Ballistic Gun High-powered Shotgun Ballistic Cannon Assault Cannon Launcher Rocket Launcher Impact Weapon Maul Slashing Weapon Chainsword Piercing Weapon Force Lance Build | -11 -10 -10 -9 -9 -9 -8 -8 -7 -6 -5 -4 -3 -2 -1 ------- Run | Yrd Mat Min Mat Min Exi Min Mat Fac Fac Fac Fac Res Res Acc Slots Evolved 18 | . . . 2 . . . 2 2 2 2 2 2 2 2 Power 2 | . . . . . . . . . 1 . . . 1 . Propulsion 6 | . . . 2 . . . . 1 1 . . . 1 1 Utility 10 | . . . . . . . 2 1 . 2 2 2 . 1 Weapon . | . . . . . . . . . . . . . . . Parts Attached 103 | 7 3 . 33 . 1 3 17 15 5 3 6 2 6 2 Power 12 | 1 . . 5 . . . 2 2 . 1 . . 1 . Engine 8 | 1 . . 5 . . . 1 . . . . . 1 . Core 4 | . . . . . . . 1 2 . 1 . . . . Reactor . | . . . . . . . . . . . . . . . Propulsion 36 | 2 2 . 15 . 1 . 8 3 1 . 1 . 2 1 Treads 21 | . 2 . 15 . 1 . 3 . . . . . . . Leg 2 | 2 . . . . . . . . . . . . . . Wheel . | . . . . . . . . . . . . . . . Hover 1 | . . . . . . . . . . . . . . 1 Flight 12 | . . . . . . . 5 3 1 . 1 . 2 . Utility 33 | 2 1 . 4 . . 2 3 8 3 2 3 2 2 1 Device 12 | 1 . . 1 . . . 1 4 . 2 . 2 1 . Storage 3 | 1 1 . 1 . . . . . . . . . . . Processor 6 | . . . . . . . 2 1 2 . 1 . . . Hackware 7 | . . . . . . . . 2 1 . 2 . 1 1 Protection 5 | . . . 2 . . 2 . 1 . . . . . . Artifact . | . . . . . . . . . . . . . . . Weapon 22 | 2 . . 9 . . 1 4 2 1 . 2 . 1 . Energy Gun 2 | 1 . . 1 . . . . . . . . . . . Energy Cannon 3 | . . . 1 . . . 1 . 1 . . . . . Ballistic Gun 10 | 1 . . 5 . . 1 1 2 . . . . . . Ballistic Cannon 1 | . . . . . . . 1 . . . . . . . Launcher 2 | . . . 1 . . . 1 . . . . . . . Special Weapon . | . . . . . . . . . . . . . . . Impact Weapon 1 | . . . 1 . . . . . . . . . . . Slashing Weapon 1 | . . . . . . . . . . . 1 . . . Piercing Weapon 2 | . . . . . . . . . . . 1 . 1 . Special Melee Weapon . | . . . . . . . . . . . . . . . Unidentified Prototypes 10 | . . . 2 . . . 3 3 . 1 . . . 1 Parts Lost 9 | . . . 1 . . 1 1 1 . . . . 4 1 Power 1 | . . . . . . . . . . . . . 1 . Propulsion 3 | . . . . . . . . 1 . . . . 1 1 Utility 5 | . . . 1 . . 1 1 . . . . . 2 . Weapon . | . . . . . . . . . . . . . . . Highest Loss Streak 2 | . . . 1 . . 1 1 1 . . . . 2 1 To Critical Strikes . | . . . . . . . . . . . . . . . Average Backups 10 | 2 8 10 13 15 15 14 14 5 4 4 4 4 3 2 Power 1 | . 1 1 1 2 2 1 1 1 . . . . . . Propulsion 3 | 1 3 4 4 4 3 3 5 . . . 1 1 . . Utility 2 | . 1 2 3 4 4 4 4 2 2 2 . 1 . . Weapon 3 | . 2 3 4 5 5 5 4 1 1 2 1 2 2 2 Tool/Special . | . . . . . . . . . . . . . . . Unused Backups 20 | . 3 . 5 . . . 5 4 . . . 1 . 2 Power 3 | . . . 1 . . . 1 1 . . . . . . Propulsion 4 | . 1 . 1 . . . . 1 . . . . . 1 Utility 4 | . . . . . . . 2 2 . . . . . . Weapon 9 | . 2 . 3 . . . 2 . . . . 1 . 1 Tool/Special . | . . . . . . . . . . . . . . . Average Slot Usage (%) 95 | . 99 100 99 100 100 100 97 98 99 98 90 84 79 81 Engine 7 | . 14 14 10 11 11 11 8 . . . . . . 4 Core 3 | . . . . . . . . 7 13 11 10 9 7 4 Treads 23 | . 16 28 43 44 44 44 35 . . . . . . . Leg 1 | . 11 . . . . . . . . . . . . . Flight 9 | . . . . . . . . 36 39 35 26 23 21 19 Device 7 | . 14 14 4 . . . 8 8 2 10 14 13 9 8 Storage 7 | . 14 14 11 11 11 11 9 . . . . . . . Processor 5 | . . . . . . . 8 10 11 11 10 9 8 8 Hackware 5 | . . . . . . . . 9 13 11 13 19 17 23 Protection 5 | . . . 6 11 11 11 7 7 4 4 5 4 4 4 Energy Gun 5 | . 13 14 7 11 11 11 5 . . . . . . . Energy Cannon 2 | . . . 3 . . . 8 . . . . . . 3 Ballistic Gun 6 | . 13 14 10 11 11 10 . 7 5 5 3 . . . Impact Weapon 1 | . . . . . . . . 7 6 5 2 . . . Peak Build Rating 126 | 7 8 8 21 21 21 22 30 52 58 70 91 95 110 126 Average Rating 40 | 4 7 8 15 21 20 21 27 44 57 67 84 89 93 120 On Entrance 39 | . 7 8 8 21 21 21 22 27 52 57 70 83 90 110 Naked Turns . | . . . . . . . . . . . . . . . Heaviest Build 46 | 12 17 17 37 37 37 42 46 18 23 25 33 26 36 38 Greatest Support 92 | 20 40 40 92 92 92 92 92 31 36 25 39 39 47 47 Greatest Overweight (x) 1 | . . . . . . . 1 . . . . . 1 . Average Overweight (x) . | . . . . . . . . . . . . . . . Largest Inventory Capacity 15 | 8 10 10 15 15 15 15 15 15 5 5 5 5 5 5 Average Capacity 10 | 6 9 10 14 15 15 15 15 5 5 5 5 5 5 5 Most Carried 15 | 3 10 10 15 15 15 15 15 6 5 5 5 5 5 4 Average Carried 10 | 2 8 10 13 15 14 14 14 4 4 4 4 4 4 2 Final Capacity 15 | 8 10 10 15 15 15 15 15 5 5 5 5 5 5 5 Final Carried 15 | 3 10 10 15 15 15 15 7 5 5 5 5 5 2 4 Class Distribution -------------------- 63% | Mutant 25% | Hacker-Sprinter 4% | Wizard-Sprinter Dominant Class ---------------- Mutant | -10/Materials Mutant | -10/Mines Mutant | -9/Materials Mutant | -9/Mines Mutant | -9/Exiles Mutant | -8/Mines Mutant | -8/Materials Sprinter | -7/Factory Hacker-Sprinter | -6/Factory Hacker-Sprinter | -5/Factory Hacker-Sprinter | -4/Factory Hacker-Sprinter | -3/Research Hacker-Sprinter | -2/Research Wizard-Sprinter | -1/Access Resources | -11 -10 -10 -9 -9 -9 -8 -8 -7 -6 -5 -4 -3 -2 -1 ----------- Run | Yrd Mat Min Mat Min Exi Min Mat Fac Fac Fac Fac Res Res Acc Matter Collected 2197 | 262 102 . 672 24 . 94 297 341 33 93 124 . 125 30 Remotely . | . . . . . . . . . . . . . . . Salvage Created 3303 | 10 313 . 1233 84 . 105 806 207 33 93 374 . . 45 Parts 164 | 3 15 . 76 6 . 6 42 9 2 1 3 . . 1 Haulers Intercepted 15 | . 1 . 5 . . . 3 3 . 1 2 . . . Recyclers Shooed 5 | . 1 . . . . 1 2 1 . . . . . . Parts Field Recycled . | . . . . . . . . . . . . . . . Retrieved Matter . | . . . . . . . . . . . . . . . Parts Self-Destructed . | . . . . . . . . . . . . . . . Prevented . | . . . . . . . . . . . . . . . Kills | -11 -10 -10 -9 -9 -9 -8 -8 -7 -6 -5 -4 -3 -2 -1 ------- Run | Yrd Mat Min Mat Min Exi Min Mat Fac Fac Fac Fac Res Res Acc Combat Hostiles Destroyed 55 | . 5 . 22 4 . 4 20 . . . . . . . Guns 26 | . 5 . 11 4 . 2 4 . . . . . . . Cannons 16 | . . . 8 . . . 8 . . . . . . . AOE 12 | . . . 2 . . 2 8 . . . . . . . Classes Destroyed 13 | 1 5 . 5 . . 1 1 . . . . . . . Worker 4 | . . . 2 . . 1 1 . . . . . . . Builder 1 | . . . . . . . 1 . . . . . . . Tunneler 3 | 1 1 . 1 . . . . . . . . . . . Hauler 15 | . 1 . 5 . . . 3 3 . 1 2 . . . Recycler 6 | . 1 . 2 1 . . 1 1 . . . . . . Operator 6 | . 1 . 2 . . . 1 . 1 . 1 . . . Watcher 11 | . . . 2 . . . 4 . 1 . 3 . . 1 Swarmer 18 | . 3 . 3 4 . . 8 . . . . . . . Grunt 23 | . 2 . 11 . . 3 7 . . . . . . . Brawler 2 | . . . 1 . . . 1 . . . . . . . Duelist 2 | . . . 2 . . . . . . . . . . . Sentry 8 | . . . 5 . . . 3 . . . . . . . Hunter 2 | . . . . . . 1 1 . . . . . . . Best Kill Streak 6 | 1 3 . 5 6 . 3 6 1 1 1 2 . . 1 Combat Bots Only 5 | . 3 . 4 4 . 3 5 . . . . . . . Max Kills in Single Turn 5 | 1 1 . 3 2 . 1 5 1 1 1 1 . . 1 Gunslinging . | . . . . . . . . . . . . . . . Exploded 4 | . . . 2 . . 1 4 . . . . . . . Melee . | . . . . . . . . . . . . . . . Uniques/NPCs Destroyed . | . . . . . . . . . . . . . . . Combat | -11 -10 -10 -9 -9 -9 -8 -8 -7 -6 -5 -4 -3 -2 -1 -------- Run | Yrd Mat Min Mat Min Exi Min Mat Fac Fac Fac Fac Res Res Acc Hostile Shots Fired 342 | . 23 . 106 25 . 21 74 . 9 . 4 . 35 45 Missed 118 | . 5 . 30 6 . 4 21 . 3 . 3 . 17 29 Hits 224 | . 18 . 76 19 . 17 53 . 6 . 1 . 18 16 Melee 11 | . . . 11 . . . . . . . . . . . Projectile 213 | . 18 . 65 19 . 17 53 . 6 . 1 . 18 16 Critical Strikes 7 | . . . 3 . . 1 1 . . . . . 1 1 Damage Taken 3635 | . 161 . 1171 152 . 277 817 . 93 . 17 . 569 378 Core 399 | . 57 . 99 . . 35 121 . . . . . 63 24 Absorbed by Shields . | . . . . . . . . . . . . . . . Core Remaining (%) 92 | 100 . 77 . . . 66 78 100 100 100 100 100 95 98 Volleys Fired 266 | 5 39 . 93 7 . 11 77 . 5 . 14 . 9 6 Largest 2 | 2 2 . 2 2 . 2 2 . 1 . 1 . 1 1 Hottest 133 | 70 70 . 90 90 . 98 133 . 85 . 85 . 85 85 Shots Fired 490 | 10 77 . 186 14 . 22 147 . 5 . 14 . 9 6 Gun 325 | 10 77 . 148 14 . 19 57 . . . . . . . Cannon 158 | . . . 37 . . . 87 . 5 . 14 . 9 6 Launcher 7 | . . . 1 . . 3 3 . . . . . . . Special . | . . . . . . . . . . . . . . . Kinetic 165 | 5 39 . 93 7 . 8 13 . . . . . . . Thermal 318 | 5 38 . 92 7 . 11 131 . 5 . 14 . 9 6 Explosive 7 | . . . 1 . . 3 3 . . . . . . . Electromagnetic . | . . . . . . . . . . . . . . . Robot Hit Streak 19 | 1 5 . 19 3 . 6 16 . . . . . . . Robot Miss Streak 12 | 2 4 . 12 8 . 5 7 . . . . . . . Penetration Max . | . . . . . . . . . . . . . . . Secondary Targets 3 | . 1 . 1 1 . . . . . . . . . . Max Gunslinging Chain 1 | . 1 . 1 1 . . . . . . . . . . Shots Hit Robots 366 | 4 43 . 141 11 . 20 116 5 4 3 17 . 1 1 Core Hits 245 | 1 17 . 95 10 . 25 92 . . 1 3 . . 1 Critical Kills 3 | . 1 . 1 . . . . . . 1 . . . . Critical Parts Destroyed 2 | . . . . . . . . 1 1 . . . . . Critical Strikes 10 | 1 2 . 1 . . . . 1 1 1 3 . . . Burn 2 | 1 1 . . . . . . . . . . . . . Destroy 2 | . 1 . 1 . . . . . . . . . . . Smash 3 | . . . . . . . . 1 1 1 . . . . Sever 1 | . . . . . . . . . . . 1 . . . Impale 2 | . . . . . . . . . . . 2 . . . Melee Attacks 180 | . . . 1 . . . 3 15 38 10 43 8 38 24 Impact 87 | . . . 1 . . . 3 15 38 10 20 . . . Slashing 7 | . . . . . . . . . . . 7 . . . Piercing 86 | . . . . . . . . . . . 16 8 38 24 Sneak Attacks 12 | . . . . . . . . 4 2 1 4 . . 1 Combat Hostiles . | . . . . . . . . . . . . . . . Follow-up Attacks 1 | . . . . . . . . . . . . . 1 . Damage Inflicted 8255 | 46 434 . 2252 138 . 553 2764 448 291 180 1035 . 39 75 Guns 3162 | 46 434 . 1601 138 . 224 719 . . . . . . . Cannons 1781 | . . . 505 . . . 1276 . . . . . . . Explosions 1232 | . . . 146 . . 329 757 . . . . . . . Melee 2068 | . . . . . . . . 448 291 180 1035 . 39 75 Ramming 12 | . . . . . . . 12 . . . . . . . Kinetic 1500 | 9 215 . 919 80 . 77 200 . . . . . . . Thermal 3622 | 37 219 . 1187 58 . 147 1974 . . . . . . . Explosive 1053 | . . . 146 . . 329 578 . . . . . . . Electromagnetic . | . . . . . . . . . . . . . . . Impact 1310 | . . . . . . . . 448 291 180 391 . . . Slashing 194 | . . . . . . . . . . . 194 . . . Piercing 564 | . . . . . . . . . . . 450 . 39 75 Highest Corruption 2 | . . . . . . . . . . . . . 2 . Average Corruption 2 | . . . . . . . . . . . . . 2 . Corruption Purged . | . . . . . . . . . . . . . . . Corruption Blocked . | . . . . . . . . . . . . . . . Overload Shots . | . . . . . . . . . . . . . . . Overflow Damage 850 | . . . . . . . 162 280 184 . 224 . . . Projectiles 4 | . . . . . . . 4 . . . . . . . Explosions 158 | . . . . . . . 158 . . . . . . . Melee 688 | . . . . . . . . 280 184 . 224 . . . Knockbacks 4 | . . . . . . . 1 1 1 . 1 . . . Impact 3 | . . . . . . . . 1 1 . 1 . . . Kinetic 1 | . . . . . . . 1 . . . . . . . Secondary . | . . . . . . . . . . . . . . . Self-Inflicted Damage 91 | . . . . . . . 91 . . . . . . . Shots 4 | . . . . . . . 4 . . . . . . . Rammed 2 | . . . 1 . . . 1 . . . . . . . Targets Rammed 2 | . . . 1 . . . 1 . . . . . . . Kicked . | . . . . . . . . . . . . . . . Crushed . | . . . . . . . . . . . . . . . Highest Temperature 352 | 70 126 . 271 144 . 197 39 30 190 32 352 74 224 96 Average Temperature 41 | 32 36 . 44 61 . 73 14 6 44 11 60 23 67 32 Received Heat Transfer 777 | . 48 . 279 . . 99 288 . 9 . . . 54 . Siege Activations . | . . . . . . . . . . . . . . . Martial Activations . | . . . . . . . . . . . . . . . Shielding Activations . | . . . . . . . . . . . . . . . Robots Disrupted . | . . . . . . . . . . . . . . . Combat Hostiles . | . . . . . . . . . . . . . . . Robots Corrupted 7 | . . . . . . . . 2 1 . 4 . . . Combat Hostiles . | . . . . . . . . . . . . . . . Parts Fried 4 | . . . . . . . . 1 . . 3 . . . Impact Corruptions 17 | . . . . . . . . 5 5 . 7 . . . Robots Melted 1 | . . . 1 . . . . . . . . . . . Combat Hostiles 1 | . . . 1 . . . . . . . . . . . Parts Melted 8 | 1 . . 4 . . . 3 . . . . . . . Heat Transferred 6321 | 185 740 . 2187 75 . 195 2939 . . . . . . . Parts Sabotaged . | . . . . . . . . . . . . . . . Parts Stolen . | . . . . . . . . . . . . . . . Parts Stripped . | . . . . . . . . . . . . . . . Power Chain Reactions . | . . . . . . . . . . . . . . . Alert | -11 -10 -10 -9 -9 -9 -8 -8 -7 -6 -5 -4 -3 -2 -1 ------- Run | Yrd Mat Min Mat Min Exi Min Mat Fac Fac Fac Fac Res Res Acc Maximum Alert Level 1 | . . . 1 . . . 1 . . . . . . . Low Security (%) 95 | 100 100 100 98 100 . 100 81 100 100 100 100 100 100 100 Level 1 4 | . . . 1 . . . 18 . . . . . . . Level 2 . | . . . . . . . . . . . . . . . Level 3 . | . . . . . . . . . . . . . . . Level 4 . | . . . . . . . . . . . . . . . Level 5 . | . . . . . . . . . . . . . . . High Security . | . . . . . . . . . . . . . . . Max Security . | . . . . . . . . . . . . . . . Peak Influence 352 | . 60 . 205 105 . 75 352 140 39 22 33 32 30 133 Initial 140 | . . . . 15 . . . 140 19 7 10 . . 12 Average 42 | . 8 . 50 51 . 13 91 94 4 3 5 8 4 85 Influence Increases 2682 | 5 143 . 688 95 . 120 683 61 134 36 132 83 234 268 Destroy 0b10 Robot/C 1100 | . 100 . 440 80 . 80 400 . . . . . . . Destroy 0b10 Robot/NC 230 | 5 20 . 70 5 . 5 55 20 10 5 30 . . 5 Destroy Leader 292 | . 22 . 134 10 . 20 84 6 2 2 10 . . 2 Successful Hack 146 | . . . . . . . 11 26 29 . 36 26 6 12 Disable Machine 75 | . . . . . . . 45 . 15 . . . 15 . Destroy Structure 359 | . 1 . 14 . . 15 58 9 33 14 56 12 93 54 Partial Spotted 195 | . . . . . . . . . 45 . . 15 75 60 Lose Combat Pursuer 285 | . . . 30 . . . 30 . . 15 . 30 45 135 Influence Decreases 2598 | 5 143 . 648 135 . 120 373 330 160 29 154 83 214 204 Entered New Map 245 | . . . . 25 . . . 170 22 8 12 . . 8 Time Decay 2036 | 5 143 . 457 110 . 120 363 150 95 21 142 83 161 186 Lost Part 47 | . . . 10 . . . 10 10 . . . . 7 10 Lost Ally 10 | . . . . . . . . . . . . . 10 . Purge Threat 260 | . . . 181 . . . . . 43 . . . 36 . Squads Dispatched 21 | . 1 . 2 . . . . 2 3 . 3 . 8 2 Investigation 2 | . . . 1 . . . . . 1 . . . . . Extermination 11 | . . . . . . . . 1 2 . 2 . 4 2 Reinforcement 8 | . 1 . 1 . . . . 1 . . 1 . 4 . Assault . | . . . . . . . . . . . . . . . Garrison . | . . . . . . . . . . . . . . . Intercept . | . . . . . . . . . . . . . . . Searches Triggered . | . . . . . . . . . . . . . . . Construction Impeded . | . . . . . . . . . . . . . . . Haulers Reinforced 1 | . . . . . . . . 1 . . . . . . Active Scanning Responses . | . . . . . . . . . . . . . . . Cargo Convoy Interrupts . | . . . . . . . . . . . . . . . Stealth | -11 -10 -10 -9 -9 -9 -8 -8 -7 -6 -5 -4 -3 -2 -1 --------- Run | Yrd Mat Min Mat Min Exi Min Mat Fac Fac Fac Fac Res Res Acc Distress Signals 7 | . 1 . 1 . . . . . 1 . . . 2 2 Communications Jammed 14 | . . . . . . . . . . . . . 9 5 Distress Signals 9 | . . . . . . . . . . . . . 9 . Times Spotted 160 | . 14 . 39 4 . 4 33 1 10 2 8 3 30 12 Peak Tracking Total 6 | . 3 . 6 3 . 3 5 1 4 1 3 3 6 6 Tactical Retreats 22 | . . . 2 . . . 2 . 2 1 3 1 7 4 Traps | -11 -10 -10 -9 -9 -9 -8 -8 -7 -6 -5 -4 -3 -2 -1 ------- Run | Yrd Mat Min Mat Min Exi Min Mat Fac Fac Fac Fac Res Res Acc Traps Triggered 11 | . 1 . 2 . . . . 2 2 . 1 . 1 2 Indirectly . | . . . . . . . . . . . . . . . Trap Hack Attempts . | . . . . . . . . . . . . . . . Triggered . | . . . . . . . . . . . . . . . Disarmed . | . . . . . . . . . . . . . . . Reprogrammed . | . . . . . . . . . . . . . . . Reused . | . . . . . . . . . . . . . . . Traps Extracted . | . . . . . . . . . . . . . . . Installed . | . . . . . . . . . . . . . . . Triggered . | . . . . . . . . . . . . . . . Machines | -11 -10 -10 -9 -9 -9 -8 -8 -7 -6 -5 -4 -3 -2 -1 ---------- Run | Yrd Mat Min Mat Min Exi Min Mat Fac Fac Fac Fac Res Res Acc Machines Disabled 5 | . . . . . . . 3 . 1 . . . 1 . Max in Single Turn 2 | . . . . . . . 2 . 1 . . . 1 . Garrison Access 2 | . . . . . . . . . . . . 1 1 . Machines Repaired . | . . . . . . . . . . . . . . . Machines Dismantled . | . . . . . . . . . . . . . . . Machines Sabotaged . | . . . . . . . . . . . . . . . Overloaded Fab Kills . | . . . . . . . . . . . . . . . Hacking | -11 -10 -10 -9 -9 -9 -8 -8 -7 -6 -5 -4 -3 -2 -1 --------- Run | Yrd Mat Min Mat Min Exi Min Mat Fac Fac Fac Fac Res Res Acc Machines Accessed 49 | . 5 . 3 . 2 . 5 5 8 4 4 2 8 3 Terminals 42 | . 5 . 3 . . . 4 5 7 3 4 1 7 3 Fabricators . | . . . . . . . . . . . . . . . Repair Stations . | . . . . . . . . . . . . . . . Recycling Units 1 | . . . . . . . 1 . . . . . . . Scanalyzers 1 | . . . . . . . . . . 1 . . . . Garrison Access 3 | . . . . . . . . . 1 . . 1 1 . Total Hacks 124 | . 9 . 9 . 2 . 13 12 22 9 14 6 22 6 Successful 54 | . . . 3 . 2 . 5 5 8 3 11 3 12 2 Failed 70 | . 9 . 6 . . . 8 7 14 6 3 3 10 4 Catastrophic 17 | . 5 . 1 . . . 1 2 2 2 1 . 3 . Database Lockouts . | . . . . . . . . . . . . . . . Manual 81 | . 9 . 1 . 1 . 11 12 11 4 7 4 16 5 Terminals 112 | . 9 . 9 . . . 11 12 20 6 14 4 21 6 Fabricators . | . . . . . . . . . . . . . . . Repair Stations . | . . . . . . . . . . . . . . . Recycling Units 2 | . . . . . . . 2 . . . . . . . Scanalyzers 3 | . . . . . . . . . . 3 . . . . Garrison Access 5 | . . . . . . . . . 2 . . 2 1 . Terminal Hacks 30 | . . . 3 . 2 . 2 . 5 . 8 1 8 1 Record 1 | . . . . . 1 . . . . . . . . . Prototype ID Bank 1 | . . . . . . . . . . . 1 . . . Open Door 1 | . . . . . . . . . . . . . . 1 Level Access Points 4 | . . . . . . . . . 1 . 1 1 1 . Terminal Index 1 | . . . . . . . . . . . 1 . . . Alert Level 2 | . . . . . . . 1 . . . . . 1 . Unreport Threat 7 | . . . 2 . . . . . 3 . . . 2 . Reinforcement Status 1 | . . . . . . . . . . . . . 1 . Recall Extermination 2 | . . . . . . . . . . . . . 2 . Recall Reinforcements 1 | . . . . . . . . . . . . . 1 . Hauler Manifests 4 | . . . 1 . . . 1 . . . 2 . . . Registered Components 1 | . . . . . . . . . . . 1 . . . Registered Prototypes 1 | . . . . . . . . . . . 1 . . . Zone Layout 2 | . . . . . . . . . 1 . 1 . . . Proto ID Catalog 1 | . . . . . 1 . . . . . . . . . Fabricator Hacks . | . . . . . . . . . . . . . . . Repair Station Hacks . | . . . . . . . . . . . . . . . Recycling Unit Hacks 1 | . . . . . . . 1 . . . . . . . Retrieve Components 1 | . . . . . . . 1 . . . . . . . Scanalyzer 2 | . . . . . . . . . . 2 . . . . Insert Component 1 | . . . . . . . . . . 1 . . . . Analyze 1 | . . . . . . . . . . 1 . . . . Garrison Access Hacks 2 | . . . . . . . . . . . . 1 1 . Seal Access 2 | . . . . . . . . . . . . 1 1 . Unauthorized Hacks 19 | . . . . . . . 2 5 3 1 3 1 3 1 Terminals 19 | . . . . . . . 2 5 3 1 3 1 3 1 Assimilate 3 | . . . . . . . 1 . . . 1 . 1 . Botnet 12 | . . . . . . . . 2 3 1 2 1 2 1 Operators 1 | . . . . . . . 1 . . . . . . . Skim 3 | . . . . . . . . 3 . . . . . . Fabricators . | . . . . . . . . . . . . . . . Repair Stations . | . . . . . . . . . . . . . . . Recycling Units . | . . . . . . . . . . . . . . . Scanalyzers . | . . . . . . . . . . . . . . . Garrison Access . | . . . . . . . . . . . . . . . Data Cores Recovered 3 | . . . 1 . . . 1 . 1 . . . . . Used . | . . . . . . . . . . . . . . . Hacking Detections 42 | . 5 . 3 . . . 5 5 8 4 2 1 7 2 Full Trace Events 3 | . 2 . 1 . . . . . . . . . . . Feedback Events . | . . . . . . . . . . . . . . . Feedback Blocked . | . . . . . . . . . . . . . . . Robot Schematics Acquired . | . . . . . . . . . . . . . . . Robots Built . | . . . . . . . . . . . . . . . Authchips . | . . . . . . . . . . . . . . . Time . | . . . . . . . . . . . . . . . Total Robot Build Rating . | . . . . . . . . . . . . . . . Part Schematics Acquired 1 | . . . . . . . . . . 1 . . . . Parts Built . | . . . . . . . . . . . . . . . Authchips . | . . . . . . . . . . . . . . . Time . | . . . . . . . . . . . . . . . Total Part Build Rating . | . . . . . . . . . . . . . . . Parts Repaired . | . . . . . . . . . . . . . . . Time . | . . . . . . . . . . . . . . . Parts Recycled . | . . . . . . . . . . . . . . . Recycled Matter . | . . . . . . . . . . . . . . . Retrieved Matter . | . . . . . . . . . . . . . . . Retrieved Components 10 | . . . . . . . 10 . . . . . . . Parts Scanalyzed 1 | . . . . . . . . . . 1 . . . . Part Schematics Acquired 1 | . . . . . . . . . . 1 . . . . Parts Damaged . | . . . . . . . . . . . . . . . Bothacking | -11 -10 -10 -9 -9 -9 -8 -8 -7 -6 -5 -4 -3 -2 -1 ------------ Run | Yrd Mat Min Mat Min Exi Min Mat Fac Fac Fac Fac Res Res Acc Used RIF Installer . | . . . . . . . . . . . . . . . Robots Hacked . | . . . . . . . . . . . . . . . Non-combat . | . . . . . . . . . . . . . . . Combat . | . . . . . . . . . . . . . . . Robot Hacks Applied . | . . . . . . . . . . . . . . . Relay Couplers Released . | . . . . . . . . . . . . . . . Fabnet Peak Effective % . | . . . . . . . . . . . . . . . Robots Rewired . | . . . . . . . . . . . . . . . Allies Hacked . | . . . . . . . . . . . . . . . Hacks Repelled . | . . . . . . . . . . . . . . . Allies | -11 -10 -10 -9 -9 -9 -8 -8 -7 -6 -5 -4 -3 -2 -1 -------- Run | Yrd Mat Min Mat Min Exi Min Mat Fac Fac Fac Fac Res Res Acc Total Allies 2 | . . . . . . . 1 . . . . . 1 . Largest Group 1 | . . . . . . . 1 . . . . . 1 . Highest-Rated Group 45 | . . . . . . . 10 . . . . . 45 . Highest-Rated Ally 45 | . . . . . . . 10 . . . . . 45 . Total Orders . | . . . . . . . . . . . . . . . Ally Attacks . | . . . . . . . . . . . . . . . Total Damage . | . . . . . . . . . . . . . . . Kills . | . . . . . . . . . . . . . . . Allies Corrupted 1 | . . . . . . . 1 . . . . . . . Allies Melted . | . . . . . . . . . . . . . . . Intel | -11 -10 -10 -9 -9 -9 -8 -8 -7 -6 -5 -4 -3 -2 -1 ------- Run | Yrd Mat Min Mat Min Exi Min Mat Fac Fac Fac Fac Res Res Acc Active Infowar (turns) 6627 | 7 947 232 579 . . . 1887 305 591 157 599 275 641 407 Optics 4862 | . . . . . . . 1887 305 591 157 599 275 641 407 Seismic 1765 | 7 947 232 579 . . . . . . . . . . . Cloaking 3 | . . . . . . . . 1 . . 1 . 1 . Jamming 2117 | . . . . . . . . 40 9 148 599 273 641 407 ECM 1057 | . . . . . . . . 2 109 59 558 8 321 . Robot Analysis Total . | . . . . . . . . . . . . . . . Derelict Logs Recovered 2 | . . 1 . 1 . . . . . . . . . . Drone Launches . | . . . . . . . . . . . . . . . Drone Recoveries . | . . . . . . . . . . . . . . . Exploration | -11 -10 -10 -9 -9 -9 -8 -8 -7 -6 -5 -4 -3 -2 -1 ------------- Run | Yrd Mat Min Mat Min Exi Min Mat Fac Fac Fac Fac Res Res Acc Turns Passed 8700 | 72 947 232 1476 233 338 520 1907 305 591 157 599 275 641 407 Spaces Moved 8804 | 41 405 146 660 133 210 293 902 858 1267 306 947 441 1275 920 Core 5 | 5 . . . . . . . . . . . . . . Treads 2622 | . 279 146 660 133 210 293 901 . . . . . . . Legs 162 | 36 126 . . . . . . . . . . . . . Wheels . | . . . . . . . . . . . . . . . Hover . | . . . . . . . . . . . . . . . Flight 6015 | . . . . . . . 1 858 1267 306 947 441 1275 920 Fastest Speed 11 | 50 120 160 160 160 160 160 103 23 11 23 23 14 14 18 Average Speed 65 | 111 147 160 160 160 160 160 158 24 22 23 23 23 23 24 Slowest Speed 160 | 120 160 160 160 160 160 160 160 28 23 23 24 24 92 28 Overloaded Moves 94 | . . . . . . . . . 29 . . 10 24 31 Propulsion Burnouts . | . . . . . . . . . . . . . . . Robots Hopped 57 | . . . . . . . . 6 8 1 6 3 14 19 Potential Cave-ins 6 | . . . . . . . . . . . 6 . . . Cave-ins Triggered . | . . . . . . . . . . . . . . . Exploration Rate (%) 39 | 3 66 49 64 38 59 75 61 36 32 9 23 15 35 31 Regions Visited 14 Branch Regions 4 Pre-discovered Areas 1 | . . . . . 1 . . . . . . . . . Known Exits Taken 5 | . . . . . . . . . 1 1 1 1 1 . Unknown Exits Taken 9 | 1 1 1 1 1 1 1 1 1 . . . . . . Scrap Searched 2 | . . 1 . . . 1 . . . . . . . . Spaces Dug 130 | . . . 1 . . . 3 9 31 7 24 6 30 19 Terrain Destroyed 248 | . . . 11 . . 26 64 9 33 7 37 6 35 20 Melee 125 | . . . 1 . . . 3 9 28 7 23 6 30 18 Projectile 28 | . . . . . . . 2 . 5 . 14 . 5 2 AOE 95 | . . . 10 . . 26 59 . . . . . . . Terrain Rammed . | . . . . . . . . . . . . . . . Walls Destroyed . | . . . . . . . . . . . . . . . Machines Disabled . | . . . . . . . . . . . . . . . Actions | -11 -10 -10 -9 -9 -9 -8 -8 -7 -6 -5 -4 -3 -2 -1 --------- Run | Yrd Mat Min Mat Min Exi Min Mat Fac Fac Fac Fac Res Res Acc Total 10811 | 55 686 145 913 139 212 323 1225 923 1476 369 1216 591 1515 1023 Wait 1274 | . 222 . 58 . . 7 173 2 155 49 180 141 199 88 Move 8682 | 40 404 145 659 132 209 292 901 845 1251 303 935 434 1246 886 Hop 50 | . . . . . . . . 6 7 1 5 3 14 14 Pick Up 63 | 3 9 . 23 . 1 4 10 5 2 . 3 1 1 1 Fast Attach 53 | 7 4 . 9 . . . 9 8 . 1 5 2 4 4 Attach 24 | . . . 3 . . 1 10 2 2 1 2 . 3 . Detach 7 | . 1 . 2 . . . . 2 . . 2 . . . Swap 76 | . 1 . 27 . 1 4 16 7 9 3 3 . 4 1 Drop 102 | . 6 . 37 . 1 4 25 15 . 1 9 2 2 . Fire 266 | 5 39 . 93 7 . 11 77 . 5 . 14 . 9 6 Melee 174 | . . . 1 . . . 3 15 38 10 43 8 33 23 Ram . | . . . . . . . . . . . . . . . Kick . | . . . . . . . . . . . . . . . Crush 2 | . . . 1 . . . 1 . . . . . . . Escape Stasis 38 | . . . . . . . . 16 7 . 15 . . . Rewire . | . . . . . . . . . . . . . . . Trap . | . . . . . . . . . . . . . . . Miscellaneous . | . . . . . . . . . . . . . . . Route ------- -11/Scrapyard -10/Materials (discovered 2 exits: *Mat / [*Min]) -10/Mines -9/Materials (discovered 2 exits: *Mat / [*Min]) -9/Mines (discovered 2 exits: *Mat / *Exi) -9/Exiles -8/Mines -8/Materials (discovered 2 exits: *Fac x2) -7/Factory -6/Factory (discovered 6 exits: *Fac x4 / *Low x2) -5/Factory (discovered 2 exits: *Fac / [*Ext]) -4/Factory (discovered 4 exits: *Res x4) -3/Research (discovered 3 exits: *Res x3) -2/Research (discovered 4 exits: *Acc x3 / *Tes) -1/Access To Epsilon Eridani History --------- Turn | Location | Event 3 | -11/Scrapyard | Discovered new exit (range 16) 73 | -11/Scrapyard | Entered Materials 300 | -10/Materials | Build established: Mutant 571 | -10/Materials | Discovered new exit (range 4) 818 | -10/Materials | Discovered new exit (range 8) 1020 | -10/Materials | Entered Mines 1112 | -10/Mines | Learned Materials stockpile data 1230 | -10/Mines | Discovered new exit (range 15) 1252 | -10/Mines | Entered Materials 1252 | -9/Materials | Evolved 2 slots: Propulsion x2 1926 | -9/Materials | Discovered new exit (range 5) 2254 | -9/Materials | Discovered new exit (range 14) 2728 | -9/Materials | Entered Mines 2777 | -9/Mines | Discovered new exit (range 12) 2842 | -9/Mines | Learned Materials terminal intel 2936 | -9/Mines | Excavation squad dispatched 2936 | -9/Mines | A large section of the Mines collapsed 2953 | -9/Mines | Deemed a non-threat by the Exiles lab entrance 2954 | -9/Mines | Discovered new exit (range 5) 2961 | -9/Mines | Entered Exiles 3000 | -9/Exiles | Met 8R-AWN 3027 | -9/Exiles | Met EX-HEX 3073 | -9/Exiles | Met EX-BIN 3091 | -9/Exiles | Aligned with FarCom system 3093 | -9/Exiles | Given EX-Vault access code 3131 | -9/Exiles | Opened EX-Vault 3144 | -9/Exiles | Found Cloak of Protection 3174 | -9/Exiles | Warned to stay clear of 0b10 Research branches 3224 | -9/Exiles | Met EX-DEC 3230 | -9/Exiles | Learned location of Zion (-7) 3284 | -9/Exiles | Discovered new exit (range 10) 3299 | -9/Exiles | Left Exiles lab with Cloak of Protection 3299 | -9/Exiles | Entered Mines 3806 | -8/Mines | Discovered new exit (range 8) 3819 | -8/Mines | Entered Materials 3819 | -8/Materials | Evolved 2 slots: Utility x2 3820 | -8/Materials | Loaded intel: 12 terminal locations 4357 | -8/Materials | Discovered new exit (range 5) 4898 | -8/Materials | Discovered new exit (range 13) 5726 | -8/Materials | Entered Factory 5726 | -7/Factory | Evolved 2 slots: Propulsion x1, Utility x1 6012 | -7/Factory | Discovered new exit (range 20) 6031 | -7/Factory | Entered another Factory area 6031 | -6/Factory | Evolved 2 slots: Power x1, Propulsion x1 6185 | -6/Factory | Discovered new exit (range 7) 6187 | -6/Factory | Identified exit to Lower Caves 6210 | -6/Factory | Identified exit to Factory 6244 | -6/Factory | Build established: Hacker-Sprinter 6567 | -6/Factory | Discovered exit to Lower Caves (range 5) 6622 | -6/Factory | Entered another Factory area 6622 | -5/Factory | Evolved 2 slots: Utility x2 6731 | -5/Factory | Discovered new exit (range 16) 6767 | -5/Factory | Discovered new exit (range 18) 6776 | -5/Factory | Identified exit to Factory 6779 | -5/Factory | Entered another Factory area 6779 | -4/Factory | Evolved 2 slots: Utility x2 7115 | -4/Factory | Identified exit to Research 7378 | -4/Factory | Entered Research 7378 | -3/Research | Evolved 2 slots: Utility x2 7523 | -3/Research | Identified exit to Research 7526 | -3/Research | Found Gamma Bomb Array 7653 | -3/Research | Entered another Research area 7653 | -2/Research | Evolved 2 slots: Power x1, Propulsion x1 7655 | -2/Research | Discovered new exit (range 8) 7657 | -2/Research | Identified exit to Testing 7674 | -2/Research | Identified exit to Access 7784 | -2/Research | Spotted B-90 Cyclops 7820 | -2/Research | Spotted B-90 Cyclops 8294 | -2/Research | Entered Access 8294 | -1/Access | Evolved 2 slots: Propulsion x1, Utility x1 8597 | -1/Access | Build established: Wizard-Sprinter 8700 | -1/Access | Discovered new exit (range 6) 8701 | -1/Access | Identified exit to Surface 8701 | *** | Escaped! Last Messages --------------- 08617_ Acquired Hvy. Pick. 08618_ ALERT: Potential suspicious activity detected, Programmers report to Access Zone 9P. 08619_ Acquired Phase Cannon. 08620_ Slug penetrates Wall. 08633_ Triggered Hellfire Trap. 08633_ An explosion rips through the floor. 08673_ Drone signal jammed. 08677_ Slug penetrates Wall. 08683_ Fabricator disabled. 08687_ U-05 Engineer builds a Wall. 08687_ Slug penetrates Wall. 08687_ Penetrated by Slug. 08687_ Imp. VTOL Module destroyed. 08699_ Connecting with Terminal... >>Open(Door) Sealed Barrier opened. 08700_ The Access Shell folds into the floor. 08700_ EXIT=FOUND 08701_ EXIT=IDENTIFIED: SURFACE Map ----- +----------------------------------------------------+ | ?????????????????????????????????????????????????? | | ?????????????????????????????????????????????????? | | ?????????????????????????????????????????????????? | | ?????????????????????????????????????????????????? | | ?????????????????????????????????????????????????? | | ?????????????????????????????????????????????????? | | ?????????????????????????????????????????????????? | | ?????????????????????????????????????????????????? | | ?????????????????????????????????????????????????? | | ?????????????????????????????????????????????????? | | ?????????????????????????????????????????????????? | | ?????????????????????????????????????????????????? | | ?????????????????????????????????????????????????? | | ?????????????????????????????????????????????????? | | ?????????????????????BB????BB????????????????????? | | ?????????????????????BB????BB????????????????????? | | ?????????????????????????????????????????????????? | | ?????????????????????????????????????????????????? | | ?????????????????????????????????????????????????? | | ?????????????????????????????????????????????????? | | ???????????????????#""""""""""#??????????????????? | | ???????????????????# #??????????????????? | | ???????????????????# #??????????????????? | | ???????????????????# #?####+##??????????? | | ???????????????????# "" #?# ?????????? | | ???????????????????# "@ #?# ?????????? | | ???????????????????# #?# " ????????? | | ???????????????????# #?# """ #????? | | ???????????????????# #?# """ #????? | | ??????????????????## ### " #????? | | ??????????????????# ## #????? | | ??????????????????##"" ### #????? | | ???????????????????#"" #?# "" "" #????? | | ???????????????????#"" #?# ""R"" ?????? | | ???????????????????#T #?# """" ???????? | | ???????????????????#"" #?# ?????????? | | ???????????????????#"" #?? ???????????? | | ???????????????????#"" #####+########## | | ????????? | | ?????? | | ??????################################# ###### | | ?######???????????????????????????????# #????????? | | ## #???????????????????????????????# #????????? | | #??????########?????????????????# #????????? | | " #????### #?????????????????# #????????? | | ?# #????# + #?????????????????# #????????? | | ?## ##????# # #?????????????????# #????????? | | ??# #?????# # = #?????????????????# #????????? | | ??# #?????# / #????##########???# #????????? | | ??# #?????# # ! #????# #???# #????????? | +----------------------------------------------------+ Best States ------------- Heat Dissipation 56 Energy Generation 28 Energy Capacity 280 Matter Stores 300 Matter Capacity 300 Sight Range 22 Terrain Scan Density 10 ECM Strength 2 Jamming Range 16 Cloak Strength 5 Armor Coverage 225 Evasion (%) 66 Recoil Reduction 4 Offensive Hacking 42 Defensive Hacking 26 Item Schematics ----------------- Exp. Heat Sink | -5/Factory | Scanalyzed Robot Schematics ------------------ None Fabricated ------------ Nothing Repaired ---------- Nothing Alien Tech Used ----------------- None Achievements -------------- None Challenges ------------ None Game ------ Seed HypervelocitySubatomicClaw Manual? 0 Play Time 02:04:31 Cumulative 181.2 hours Start 2025.05.31 @ 15:00:33 End 2025.05.31 @ 22:57:33 Sessions 3 Manual Loads 0 Difficulty Rogue Special Mode None Game No. 123 Rogue 123 Adventurer 0 Explorer 0 Win Type 0 Total 9 Types 7/0/1/1/0/0/0/0/0/0 Lore% 66 Gallery% 60 Achievement% 58 Wizard Run 0 Options --------- Layout 0 ASCII 1 Keyboard 1 Movement Numpad Keybinds 0 Fullscreen 1 Font 24/Proggy Map View 76x56 Zoom Use 0% Tactical HUD 1 Map Filters NONE Filters NONE Steam 1 RUN: eae6047c-a5a5-4c62-abae-42033ed8e308